fUSD/lending_fUSD_20240518
["ID","MTS","AMOUNT","RATE_DAILY","PERIOD"]
[327435116,1716072719723,-500.0,0.00029863,2]
[327435117,1716072719732,-500.0,0.00029863,2]
[327435118,1716072719742,-595.48,0.00029863,2]
[327435119,1716072719751,-500.0,0.00029863,2]
[327435120,1716072719761,-500.0,0.00029863,2]
[327435121,1716072719771,-1113.91,0.00029863,2]
[327435122,1716072719781,-1942.1,0.00029863,2]
[327435123,1716072719791,-500.0,0.00029863,2]
[327435124,1716072719800,-1482.72,0.00029863,2]
[327435125,1716072719809,-1155.06,0.00029863,2]
[327435126,1716072719819,-726.7,0.00029863,2]
[327435127,1716072719828,-500.0,0.00029863,2]
[327435128,1716072719837,-847.09,0.00029863,2]
[327435129,1716072719847,-532.61,0.00029863,2]
[327435130,1716072719856,-964.76,0.00029863,2]
[327435131,1716072719866,-1203.05,0.00029863,2]
[327435132,1716072719875,-2231.29,0.00029863,2]
[327435133,1716072719884,-500.0,0.00029863,2]
[327435134,1716072719894,-500.0,0.00029863,2]
[327435135,1716072719903,-827.71,0.00029863,2]
[327435136,1716072719911,-500.0,0.00029863,2]
[327435137,1716072719920,-697.91,0.00029863,2]
[327435138,1716072719931,-1278.41,0.00029863,2]
[327435139,1716072719940,-816.1,0.00029863,2]
[327435140,1716072719949,-500.0,0.00029863,2]
[327435141,1716072719959,-32915.72,0.00029863,2]
[327435142,1716072719968,-953.63,0.00029863,2]
[327435143,1716072719977,-2447.17,0.00029863,2]
[327435144,1716072719986,-865.72,0.00029863,2]
[327435145,1716072719995,-682.57,0.00029863,2]
[327435146,1716072720004,-529.16,0.00029863,2]
[327435147,1716072720014,-1750.4,0.00029863,2]
[327435148,1716072720024,-2057.73,0.00029863,2]
[327435149,1716072720033,-2572.88,0.00029863,2]
[327435150,1716072720042,-3119.96,0.00029863,2]
[327435151,1716072720052,-922.14,0.00029863,2]
[327435152,1716072720063,-500.0,0.00029863,2]
[327435153,1716072720073,-2353.86,0.00029863,2]
[327435154,1716072720083,-500.0,0.00029863,2]
[327435155,1716072720092,-531.36,0.00029863,2]
[327435156,1716072720101,-858.26,0.00029863,2]
[327435157,1716072720110,-150.0,0.00029863,2]
[327435158,1716072720120,-500.0,0.00029863,2]
[327435159,1716072720130,-1058.12,0.00029863,2]
[327435160,1716072720139,-638.4,0.00029863,2]
[327435161,1716072720148,-1228.94,0.00029863,2]
[327435162,1716072720157,-872.12,0.00029863,2]
[327435163,1716072720168,-610.79,0.00029863,2]
[327435164,1716072720177,-500.0,0.00029863,2]
[327435165,1716072720186,-650.02,0.00029863,2]
[327435166,1716072720196,-500.0,0.00029863,2]
[327435167,1716072720205,-911.87,0.00029863,2]
[327435168,1716072720213,-722.52,0.00029863,2]
[327435169,1716072720223,-628.71,0.00029863,2]
[327435170,1716072720232,-612.69,0.00029863,2]
[327435171,1716072720241,-9177.76,0.00029863,2]
[327435172,1716072720250,-500.0,0.00029863,2]
[327435173,1716072720260,-500.0,0.00029863,2]
[327435174,1716072720270,-2257.41,0.00029863,2]
[327435175,1716072720280,-602.34,0.00029863,2]
[327435176,1716072720291,-944.42,0.00029863,2]
[327435177,1716072720300,-1506.69,0.00029863,2]
[327435178,1716072720310,-1061.27,0.00029863,2]
[327435179,1716072720319,-3490.29,0.00029863,2]
[327435180,1716072720329,-500.0,0.00029863,2]
[327435181,1716072720341,-500.0,0.00029863,2]
[327435182,1716072720351,-728.73,0.00029863,2]
[327435183,1716072720360,-500.0,0.00029863,2]
[327435184,1716072720370,-649.73,0.00029863,2]
[327435185,1716072720379,-581.62435616,0.00029863,2]
[327435186,1716072720388,-1121.22,0.00029863,2]
[327435187,1716072720397,-965.84,0.00029863,2]
[327435188,1716072720407,-962.75,0.00029863,2]
[327435189,1716072720416,-500.0,0.00029863,2]
[327435190,1716072720431,-1517.22,0.00029863,2]
[327435191,1716072720441,-607.13,0.00029863,2]
[327435192,1716072720450,-777.39,0.00029863,2]
[327435193,1716072720459,-1072.65,0.00029863,2]
[327435194,1716072720469,-1646.21,0.00029863,2]
[327435195,1716072720478,-522.66,0.00029863,2]
[327435196,1716072720487,-500.0,0.00029863,2]
[327435197,1716072720496,-500.0,0.00029863,2]
[327435198,1716072720507,-2342.49,0.00029863,2]
[327435199,1716072720518,-500.0,0.00029863,2]
[327435200,1716072720527,-936.43,0.00029863,2]
[327435201,1716072720536,-677.05,0.00029863,2]
[327435202,1716072720545,-500.0,0.00029863,2]
[327435203,1716072720554,-7836.42,0.00029863,2]
[327435204,1716072720564,-500.0,0.00029863,2]
[327435205,1716072720573,-1119.09,0.00029863,2]
[327435206,1716072720582,-500.0,0.00029863,2]
[327435207,1716072720591,-500.0,0.00029863,2]
[327435208,1716072720600,-747.33,0.00029863,2]
[327435209,1716072720609,-899.97,0.00029863,2]
[327435210,1716072720619,-500.0,0.00029863,2]
[327435211,1716072720627,-500.0,0.00029863,2]
[327435212,1716072720636,-958.2,0.00029863,2]
[327435213,1716072720645,-814.37,0.00029863,2]
[327435214,1716072720654,-903.76,0.00029863,2]
[327435215,1716072720663,-804.91,0.00029863,2]
[327435216,1716072720672,-5840.53,0.00029863,2]
[327435217,1716072720681,-546.54,0.00029863,2]
[327435218,1716072720690,-944.57,0.00029863,2]
[327435219,1716072720699,-500.0,0.00029863,2]
[327435220,1716072720708,-567.91,0.00029863,2]
[327435221,1716072720717,-500.0,0.00029863,2]
[327435222,1716072720726,-500.0,0.00029863,2]
[327435223,1716072720736,-500.0,0.00029863,2]
[327435224,1716072720745,-8080.33,0.00029863,2]
[327435225,1716072720755,-514.52,0.00029863,2]
[327435226,1716072720764,-1436.74,0.00029863,2]
[327435227,1716072720773,-966.71,0.00029863,2]
[327435228,1716072720783,-500.0,0.00029863,2]
[327435229,1716072720792,-617.57,0.00029863,2]
[327435230,1716072720802,-859.01,0.00029863,2]
[327435231,1716072720811,-4199.51,0.00029863,2]
[327435232,1716072720821,-598.86,0.00029863,2]
[327435233,1716072720832,-757.33,0.00029863,2]
[327435234,1716072720842,-2709.04,0.00029863,2]
[327435235,1716072720851,-845.88,0.00029863,2]
[327435236,1716072720860,-4393.59,0.00029863,2]
[327435237,1716072720870,-1202.17,0.00029863,2]
[327435238,1716072720879,-830.64,0.00029863,2]
[327435239,1716072720888,-500.0,0.00029863,2]
[327435240,1716072720897,-198.00279924,0.00029863,2]
[327435241,1716072720907,-791.26,0.00029863,2]
[327435242,1716072720916,-1031.41,0.00029863,2]
[327435243,1716072720925,-914.71,0.00029863,2]
[327435244,1716072720935,-500.0,0.00029863,2]
[327435245,1716072720943,-13454.18,0.00029863,2]
[327435246,1716072720952,-743.99,0.00029863,2]
[327435247,1716072720962,-825.76,0.00029863,2]
[327435248,1716072720971,-917.37,0.00029863,2]
[327435249,1716072720979,-4993.36,0.00029863,2]
[327435250,1716072720989,-1338.01,0.00029863,2]
[327435251,1716072720998,-500.0,0.00029863,2]
[327435252,1716072721008,-500.0,0.00029863,2]
[327435253,1716072721016,-2348.84,0.00029863,2]
[327435254,1716072721026,-620.39,0.00029863,2]
[327435255,1716072721036,-787.6,0.00029863,2]
[327435256,1716072721046,-500.0,0.00029863,2]
[327435257,1716072721056,-2108.67,0.00029863,2]
[327435258,1716072721066,-500.0,0.00029863,2]
[327435259,1716072721075,-500.0,0.00029863,2]
[327435260,1716072721085,-591.28,0.00029863,2]
[327435261,1716072721095,-1781.93,0.00029863,2]
[327435262,1716072721104,-834.18,0.00029863,2]
[327435263,1716072721113,-500.0,0.00029863,2]
[327435264,1716072721124,-500.0,0.00029863,2]
[327435265,1716072721133,-500.0,0.00029863,2]
[327435266,1716072721142,-2211.96,0.00029863,2]
[327435267,1716072721151,-1566.6,0.00029863,2]
[327435268,1716072721160,-525.01,0.00029863,2]
[327435269,1716072721170,-500.0,0.00029863,2]
[327435270,1716072721179,-775.61,0.00029863,2]
[327435271,1716072721188,-524.04,0.00029863,2]
[327435272,1716072721198,-659.23,0.00029863,2]
[327435273,1716072721207,-500.0,0.00029863,2]
[327435274,1716072721216,-1439.35,0.00029863,2]
[327435275,1716072721226,-4593.95,0.00029863,2]
[327435276,1716072721235,-660.78,0.00029863,2]
[327435277,1716072721245,-1429.16,0.00029863,2]
[327435278,1716072721254,-553.81,0.00029863,2]
[327435279,1716072721264,-4440.74,0.00029863,2]
[327435280,1716072721273,-859.19,0.00029863,2]
[327435281,1716072721283,-500.0,0.00029863,2]
[327435282,1716072721292,-500.0,0.00029863,2]
[327435283,1716072721302,-500.0,0.00029863,2]
[327435284,1716072721311,-500.0,0.00029863,2]
[327435285,1716072721320,-987.39,0.00029863,2]
[327435286,1716072721330,-2255.19,0.00029863,2]
[327435287,1716072721339,-500.0,0.00029863,2]
[327435288,1716072721348,-1264.56,0.00029863,2]
[327435289,1716072721357,-611.43,0.00029863,2]
[327435290,1716072721367,-1385.24,0.00029863,2]
[327435291,1716072721377,-1221.01,0.00029863,2]
[327435292,1716072721386,-2088.5,0.00029863,2]
[327435293,1716072721395,-1484.57,0.00029863,2]
[327435294,1716072721404,-500.0,0.00029863,2]
[327435295,1716072721413,-500.0,0.00029863,2]
[327435296,1716072721423,-604.79114735,0.00029863,2]
[327435297,1716072721437,-500.0,0.00029863,2]
[327435298,1716072721446,-414.99,0.00029863,2]
[327435299,1716072721455,-500.0,0.00029863,2]
[327435300,1716072721464,-500.0,0.00029863,2]
[327435301,1716072721475,-500.0,0.00029863,2]
[327435302,1716072721484,-500.0,0.00029863,2]
[327435303,1716072721494,-1786.52,0.00029863,2]
[327435304,1716072721504,-7643.34,0.00029863,2]
[327435305,1716072721514,-865.89,0.00029863,2]
[327435306,1716072721525,-5681.26,0.00029863,2]
[327435307,1716072721534,-834.34,0.00029863,2]
[327435308,1716072721543,-569.88,0.00029863,2]
[327435309,1716072721553,-500.0,0.00029863,2]
[327435310,1716072721562,-500.0,0.00029863,2]
[327435311,1716072721571,-500.0,0.00029863,2]
[327435312,1716072721580,-762.15,0.00029863,2]
[327435313,1716072721590,-500.0,0.00029863,2]
[327435314,1716072721599,-555.28,0.00029863,2]
[327435315,1716072721608,-500.0,0.00029863,2]
[327435316,1716072721618,-500.0,0.00029863,2]
[327435317,1716072721627,-1179.45,0.00029863,2]
[327435318,1716072721635,-500.0,0.00029863,2]
[327435319,1716072721645,-500.0,0.00029863,2]
[327435320,1716072721654,-855.04,0.00029863,2]
[327435321,1716072721662,-500.0,0.00029863,2]
[327435322,1716072721672,-1063.61,0.00029863,2]
[327435323,1716072721681,-500.0,0.00029863,2]
[327435324,1716072721691,-654.27,0.00029863,2]
[327435325,1716072721700,-734.04,0.00029863,2]
[327435326,1716072721710,-616.27,0.00029863,2]
[327435327,1716072721720,-999.31,0.00029863,2]
[327435328,1716072721729,-668.19,0.00029863,2]
[327435329,1716072721738,-500.0,0.00029863,2]
[327435330,1716072721746,-2612.48,0.00029863,2]
[327435331,1716072721756,-948.02,0.00029863,2]
[327435332,1716072721766,-500.0,0.00029863,2]
[327435333,1716072721775,-969.95,0.00029863,2]
[327435334,1716072721785,-874.06,0.00029863,2]
[327435335,1716072721794,-515.87,0.00029863,2]
[327435336,1716072721803,-1449.83,0.00029863,2]
[327435337,1716072721812,-897.1,0.00029863,2]
[327435338,1716072721821,-150.0,0.00029999,2]
[327435339,1716072721830,-197.02238456,0.0003,2]
[327435340,1716072721840,-31534.04354711,0.0003,4]
[327435341,1716072721849,-900.0,0.0003,31]
[327435342,1716072721859,-1110.50213167,0.0003,2]
[327435343,1716072721869,-200.0,0.0003,30]
[327435344,1716072721878,-186.12094094,0.0003,2]
[327435345,1716072721887,-482.66711171,0.0003,4]
[327435346,1716072721897,-967.993539,0.0003,3]
[327435347,1716072721906,-206.68381839,0.0003,3]
[327435348,1716072721915,-155.14746071,0.0003,4]
[327435349,1716072721924,-683.77168455,0.0003,4]
[327435350,1716072721933,-2500.0,0.00030002,2]
[327435351,1716072721943,-209.0,0.0003003,2]
[327435352,1716072721952,-277.0,0.0003003,2]
[327435353,1716072721962,-2159.0,0.00030119,2]
[327435354,1716072721971,-973.0,0.00030119,2]
[327435355,1716072721980,-544.0,0.00030119,2]
[327435356,1716072721989,-1642.0,0.00030119,2]
[327435357,1716072721999,-1262.0,0.00030119,2]
[327435358,1716072722008,-1225.0,0.00030119,2]
[327435359,1716072722017,-164.0,0.00030119,2]
[327435360,1716072722026,-809.0,0.00030119,2]
[327435361,1716072722036,-439.0,0.00030119,2]
[327435362,1716072722046,-612.0,0.00030119,2]
[327435363,1716072722056,-444.0,0.00030119,2]
[327435364,1716072722065,-150.0,0.00030119,2]
[327435365,1716072722075,-150.0,0.00030119,2]
[327435366,1716072722084,-1647.0,0.00030119,2]
[327435367,1716072722093,-215.0,0.00030119,2]
[327435368,1716072722103,-3159.0,0.00030119,2]
[327435369,1716072722112,-1137.0,0.00030119,2]
[327435370,1716072722121,-4711.792,0.00030119,2]
[327435371,1716072722314,-500.0,0.00030136,2]
[327435372,1716072722332,-854.48,0.00030136,2]
[327435373,1716072722345,-722.84,0.00030136,2]
[327435374,1716072722356,-500.0,0.00030136,2]
[327435375,1716072722367,-233.38039904,0.00030136,2]
[327435376,1716072722378,-749.24,0.00030136,2]
[327435377,1716072722388,-550.07,0.00030136,2]
[327435378,1716072722398,-763.94,0.00030136,2]
[327435379,1716072722409,-500.0,0.00030136,2]
[327435380,1716072722419,-500.0,0.00030136,2]
[327435381,1716072722435,-931.54,0.00030136,2]
[327435382,1716072722446,-1254.54,0.00030136,2]
[327435383,1716072722457,-500.0,0.00030136,2]
[327435384,1716072722467,-545.32,0.00030136,2]
[327435385,1716072722477,-500.0,0.00030136,2]
[327435386,1716072722487,-500.0,0.00030136,2]
[327435387,1716072722499,-500.0,0.00030136,2]
[327435388,1716072722510,-964.74,0.00030136,2]
[327435389,1716072722522,-1304.69,0.00030136,2]
[327435390,1716072722534,-500.0,0.00030136,2]
[327435391,1716072722544,-1394.33,0.00030136,2]
[327435392,1716072722554,-500.0,0.00030136,2]
[327435393,1716072722564,-500.0,0.00030136,2]
[327435394,1716072722574,-1176.76,0.00030136,2]
[327435395,1716072722584,-500.0,0.00030136,2]
[327435396,1716072722595,-500.0,0.00030136,2]
[327435397,1716072722605,-500.0,0.00030136,2]
[327435398,1716072722615,-634.79099094,0.00030136,2]
[327435399,1716072722626,-572.05,0.00030136,2]
[327435400,1716072722635,-500.0,0.00030136,2]
[327435401,1716072722647,-1239.33,0.00030136,2]
[327435402,1716072722658,-661.91,0.00030136,2]
[327435403,1716072722668,-500.0,0.00030136,2]
[327435404,1716072722678,-500.0,0.00030136,2]
[327435405,1716072722688,-500.0,0.00030136,2]
[327435406,1716072722697,-500.0,0.00030136,2]
[327435407,1716072722707,-680.23,0.00030136,2]
[327435408,1716072722717,-500.0,0.00030136,2]
[327435409,1716072722728,-1000.47,0.00030136,2]
[327435410,1716072722738,-605.84,0.00030136,2]
[327435411,1716072722748,-790.21,0.00030136,2]
[327435412,1716072722758,-1223.78,0.00030136,2]
[327435413,1716072722768,-765.58,0.00030136,2]
[327435414,1716072722778,-1056.08,0.00030136,2]
[327435415,1716072722788,-534.55,0.00030136,2]
[327435416,1716072722798,-678.81,0.00030136,2]
[327435417,1716072722808,-812.38,0.00030136,2]
[327435418,1716072722818,-582.36,0.00030136,2]
[327435419,1716072722828,-1653.59,0.00030136,2]
[327435420,1716072722838,-1175.58,0.00030136,2]
[327435421,1716072722850,-151.0,0.00030136,7]
[327435422,1716072722859,-1017.72,0.00030136,2]
[327435423,1716072722870,-1143.15,0.00030136,2]
[327435424,1716072722880,-831.82,0.00030136,2]
[327435425,1716072722890,-151.0,0.00030136,7]
[327435426,1716072722901,-802.37,0.00030136,2]
[327435427,1716072722911,-800.26,0.00030136,2]
[327435428,1716072722920,-500.0,0.00030136,2]
[327435429,1716072722930,-1012.59,0.00030136,2]
[327435430,1716072722940,-726.12,0.00030136,2]
[327435431,1716072722951,-1028.52,0.00030136,2]
[327435432,1716072722960,-708.72,0.00030136,2]
[327435433,1716072722971,-984.97,0.00030136,2]
[327435434,1716072722981,-825.63,0.00030136,2]
[327435435,1716072722990,-500.0,0.00030136,2]
[327435436,1716072723000,-500.0,0.00030136,2]
[327435437,1716072723009,-500.0,0.00030136,2]
[327435438,1716072723019,-1274.28,0.00030136,2]
[327435439,1716072723028,-551.19,0.00030136,2]
[327435440,1716072723037,-500.0,0.00030136,2]
[327435441,1716072723047,-706.32,0.00030136,2]
[327435442,1716072723056,-500.0,0.00030136,2]
[327435443,1716072723066,-806.78,0.00030136,2]
[327435444,1716072723076,-1763.56,0.00030136,2]
[327435445,1716072723085,-151.0,0.00030136,7]
[327435446,1716072723095,-756.43,0.00030136,2]
[327435447,1716072723105,-812.94,0.00030136,2]
[327435448,1716072723114,-500.0,0.00030136,2]
[327435449,1716072723126,-500.0,0.00030136,2]
[327435450,1716072723135,-500.0,0.00030136,2]
[327435451,1716072723144,-500.0,0.00030136,2]
[327435452,1716072723153,-500.0,0.00030136,2]
[327435453,1716072723163,-1640.62,0.00030136,2]
[327435454,1716072723173,-919.67,0.00030136,2]
[327435455,1716072723183,-994.59,0.00030136,2]
[327435456,1716072723193,-508.72,0.00030136,2]
[327435457,1716072723202,-500.0,0.00030136,2]
[327435458,1716072723212,-1278.05,0.00030136,2]
[327435459,1716072723223,-350.46345962,0.00030136,2]
[327435460,1716072723233,-538.29,0.00030136,2]
[327435461,1716072723242,-500.0,0.00030136,2]
[327435462,1716072723252,-878.16,0.00030136,2]
[327435463,1716072723261,-500.0,0.00030136,2]
[327435464,1716072723270,-1193.14,0.00030136,2]
[327435465,1716072723280,-500.0,0.00030136,2]
[327435466,1716072723289,-511.86,0.00030136,2]
[327435467,1716072723299,-629.56,0.00030136,2]
[327435468,1716072723310,-701.29,0.00030136,2]
[327435469,1716072723321,-500.0,0.00030136,2]
[327435470,1716072723331,-1465.44,0.00030136,2]
[327435471,1716072723340,-500.0,0.00030136,2]
[327435472,1716072723350,-500.0,0.00030136,2]
[327435473,1716072723359,-737.76,0.00030136,2]
[327435474,1716072723370,-518.85271857,0.00030136,2]
[327435475,1716072723380,-535.86,0.00030136,2]
[327435476,1716072723390,-545.55,0.00030136,2]
[327435477,1716072723399,-500.0,0.00030136,2]
[327435478,1716072723408,-676.12,0.00030136,2]
[327435479,1716072723418,-664.25,0.00030136,2]
[327435480,1716072723433,-500.0,0.00030136,2]
[327435481,1716072723443,-1116.91,0.00030136,2]
[327435482,1716072723453,-1468.41,0.00030136,2]
[327435483,1716072723463,-500.0,0.00030136,2]
[327435484,1716072723474,-500.0,0.00030136,2]
[327435485,1716072723484,-500.0,0.00030136,2]
[327435486,1716072723494,-1503.59,0.00030136,2]
[327435487,1716072723505,-2119.81,0.00030136,2]
[327435488,1716072723516,-608.62,0.00030136,2]
[327435489,1716072723527,-1716.09,0.00030136,2]
[327435490,1716072723536,-500.0,0.00030136,2]
[327435491,1716072723546,-585.6,0.00030136,2]
[327435492,1716072723554,-1723.61,0.00030136,2]
[327435493,1716072723564,-1064.38,0.00030136,2]
[327435494,1716072723573,-673.21,0.00030136,2]
[327435495,1716072723583,-1075.81,0.00030136,2]
[327435496,1716072723592,-500.0,0.00030136,2]
[327435497,1716072723602,-587.92,0.00030136,2]
[327435498,1716072723611,-712.14,0.00030136,2]
[327435499,1716072723621,-1114.27,0.00030136,2]
[327435500,1716072723631,-1220.64,0.00030136,2]
[327435501,1716072723640,-500.0,0.00030136,2]
[327435502,1716072723650,-722.05,0.00030136,2]
[327435503,1716072723659,-2267.31,0.00030136,2]
[327435504,1716072723669,-969.15,0.00030136,2]
[327435505,1716072723678,-1458.35,0.00030136,2]
[327435506,1716072723688,-632.07,0.00030136,2]
[327435507,1716072723697,-1012.54,0.00030136,2]
[327435508,1716072723707,-1866.92,0.00030136,2]
[327435509,1716072723717,-1018.2,0.00030136,2]
[327435510,1716072723727,-1196.04,0.00030136,2]
[327435511,1716072723737,-1534.26,0.00030136,2]
[327435512,1716072723746,-500.0,0.00030136,2]
[327435513,1716072723756,-1644.74,0.00030136,2]
[327435514,1716072723766,-500.0,0.00030136,2]
[327435515,1716072723775,-201.22,0.00030136,2]
[327435516,1716072723785,-1425.36,0.00030136,2]
[327435517,1716072723795,-240.41103702,0.00030136,2]
[327435518,1716072723805,-500.0,0.00030136,2]
[327435519,1716072723814,-1458.37,0.00030136,2]
[327435520,1716072723824,-2166.18,0.00030136,2]
[327435521,1716072723834,-1570.99,0.00030136,2]
[327435522,1716072723843,-500.0,0.00030136,2]
[327435523,1716072723852,-1462.35,0.00030136,2]
[327435524,1716072723862,-1200.37,0.00030136,2]
[327435525,1716072723872,-242.95019373,0.00030136,2]
[327435526,1716072723882,-1482.14,0.00030136,2]
[327435527,1716072723892,-500.0,0.00030136,2]
[327435528,1716072723902,-589.95,0.00030136,2]
[327435529,1716072723911,-1181.38,0.00030136,2]
[327435530,1716072723921,-1203.86,0.00030136,2]
[327435531,1716072723931,-1171.23,0.00030136,2]
[327435532,1716072723941,-846.87,0.00030136,2]
[327435533,1716072723950,-500.0,0.00030136,2]
[327435534,1716072723960,-500.0,0.00030136,2]
[327435535,1716072723970,-500.0,0.00030136,2]
[327435536,1716072723980,-1159.4,0.00030136,2]
[327435537,1716072723990,-542.76,0.00030136,2]
[327435538,1716072724000,-654.46,0.00030136,2]
[327435539,1716072724009,-500.0,0.00030136,2]
[327435540,1716072724019,-477.56,0.00030136,2]
[327435541,1716072724028,-500.0,0.00030136,2]
[327435542,1716072724038,-1243.73,0.00030136,2]
[327435543,1716072724048,-500.0,0.00030136,2]
[327435544,1716072724058,-2427.59,0.00030136,2]
[327435545,1716072724068,-500.0,0.00030136,2]
[327435546,1716072724078,-1584.94,0.00030136,2]
[327435547,1716072724087,-1265.64,0.00030136,2]
[327435548,1716072724097,-500.0,0.00030136,2]
[327435549,1716072724106,-500.0,0.00030136,2]
[327435550,1716072724116,-500.0,0.00030136,2]
[327435551,1716072724126,-500.0,0.00030136,2]
[327435552,1716072724136,-500.0,0.00030136,2]
[327435553,1716072724146,-1233.86,0.00030136,2]
[327435554,1716072724155,-500.0,0.00030136,2]
[327435555,1716072724166,-500.0,0.00030136,2]
[327435556,1716072724176,-1395.57,0.00030136,2]
[327435557,1716072724186,-1132.34,0.00030136,2]
[327435558,1716072724196,-500.0,0.00030136,2]
[327435559,1716072724206,-1430.09,0.00030136,2]
[327435560,1716072724216,-683.06,0.00030136,2]
[327435561,1716072724226,-1055.87,0.00030136,2]
[327435562,1716072724236,-500.0,0.00030136,2]
[327435563,1716072724247,-572.39,0.00030136,2]
[327435564,1716072724256,-1506.92,0.00030136,2]
[327435565,1716072724266,-500.0,0.00030136,2]
[327435566,1716072724276,-505.95,0.00030136,2]
[327435567,1716072724286,-1133.79,0.00030136,2]
[327435568,1716072724295,-573.67,0.00030136,2]
[327435569,1716072724305,-500.0,0.00030136,2]
[327435570,1716072724315,-1092.05,0.00030136,2]
[327435571,1716072724326,-516.22,0.00030136,2]
[327435572,1716072724335,-438.94,0.00030136,2]
[327435573,1716072724346,-665.38,0.00030136,2]
[327435574,1716072724356,-500.0,0.00030136,2]
[327435575,1716072724366,-522.93,0.00030136,2]
[327435576,1716072724376,-500.0,0.00030136,2]
[327435577,1716072724386,-513.55,0.00030136,2]
[327435578,1716072724395,-500.0,0.00030136,2]
[327435579,1716072724404,-500.0,0.00030136,2]
[327435580,1716072724413,-500.0,0.00030136,2]
[327435581,1716072724423,-612.67,0.00030136,2]
[327435582,1716072724437,-1047.59,0.00030136,2]
[327435583,1716072724446,-797.42,0.00030136,2]
[327435584,1716072724456,-655.38,0.00030136,2]
[327435585,1716072724465,-1816.17,0.00030136,2]
[327435586,1716072724475,-500.0,0.00030136,2]
[327435587,1716072724485,-1274.2,0.00030136,2]
[327435588,1716072724495,-1013.77,0.00030136,2]
[327435589,1716072724505,-651.18,0.00030136,2]
[327435590,1716072724515,-500.0,0.00030136,2]
[327435591,1716072724525,-567.65,0.00030136,2]
[327435592,1716072724534,-1049.26,0.00030136,2]
[327435593,1716072724545,-500.0,0.00030136,2]
[327435594,1716072724556,-500.0,0.00030136,2]
[327435595,1716072724565,-591.93,0.00030136,2]
[327435596,1716072724575,-500.0,0.00030136,2]
[327435597,1716072724585,-1008.71,0.00030136,2]
[327435598,1716072724594,-500.0,0.00030136,2]
[327435599,1716072724604,-500.0,0.00030136,2]
[327435600,1716072724614,-710.61,0.00030136,2]
[327435601,1716072724624,-500.0,0.00030136,2]
[327435602,1716072724634,-878.79,0.00030136,2]
[327435603,1716072724644,-985.63,0.00030136,2]
[327435604,1716072724654,-537.31,0.00030136,2]
[327435605,1716072724664,-619.31,0.00030136,2]
[327435606,1716072724673,-500.0,0.00030136,2]
[327435607,1716072724683,-1356.52,0.00030136,2]
[327435608,1716072724693,-412.77794027,0.00030136,2]
[327435609,1716072724703,-2016.27,0.00030136,2]
[327435610,1716072724712,-612.5,0.00030136,2]
[327435611,1716072724722,-528.03,0.00030136,2]
[327435612,1716072724731,-500.0,0.00030136,2]
[327435613,1716072724740,-500.0,0.00030136,2]
[327435614,1716072724751,-996.54,0.00030136,2]
[327435615,1716072724851,-500.0,0.00030136,2]